fUST/lending_fUST_20250607
["ID","MTS","AMOUNT","RATE_DAILY","PERIOD"]
[364767355,1749234641132,-440.0,0.00020543,2]
[364767357,1749234641144,-440.0,0.00020543,2]
[364767359,1749234641155,-440.0,0.00020544,2]
[364767361,1749234641166,-816.74,0.00020544,2]
[364767363,1749234641177,-440.0,0.00020544,2]
[364767365,1749234641188,-440.0,0.00020544,2]
[364767368,1749234641199,-440.0,0.00020544,2]
[364767370,1749234641211,-440.0,0.00020544,2]
[364767372,1749234641222,-440.0,0.00020544,2]
[364767374,1749234641234,-440.0,0.00020544,2]
[364767389,1749234641371,-440.0,0.00020544,2]
[364767392,1749234641387,-440.0,0.00020544,2]
[364767394,1749234641397,-440.0,0.00020544,2]
[364767396,1749234641407,-410.0,0.00020544,2]
[364767398,1749234641417,-440.0,0.00020544,2]
[364767400,1749234641427,-440.0,0.00020544,2]
[364767402,1749234641436,-410.0,0.00020544,2]
[364767404,1749234641445,-440.0,0.00020544,2]
[364767406,1749234641455,-440.0,0.00020544,2]
[364767408,1749234641465,-440.0,0.00020544,2]
[364767410,1749234641475,-440.0,0.00020544,2]
[364767412,1749234641484,-440.0,0.00020545,2]
[364767414,1749234641496,-440.0,0.00020545,2]
[364767416,1749234641506,-440.0,0.00020545,2]
[364767418,1749234641516,-390.0,0.00020545,2]
[364767420,1749234641526,-440.0,0.00020545,2]
[364767422,1749234641536,-440.0,0.00020545,2]
[364767424,1749234641545,-440.0,0.00020545,2]
[364767426,1749234641555,-440.0,0.00020545,2]
[364767428,1749234641565,-440.0,0.00020545,2]
[364767430,1749234641575,-410.0,0.00020545,2]
[364767432,1749234641585,-440.0,0.00020545,2]
[364767434,1749234641595,-440.0,0.00020545,2]
[364767436,1749234641604,-440.0,0.00020545,2]
[364767438,1749234641614,-440.0,0.00020545,2]
[364767440,1749234641624,-440.0,0.00020545,2]
[364767442,1749234641634,-440.0,0.00020545,2]
[364767444,1749234641643,-420.0,0.00020545,2]
[364767446,1749234641653,-267.90158132,0.00020545,2]
[364767448,1749234641662,-440.0,0.00020545,2]
[364767450,1749234641672,-440.0,0.00020545,2]
[364767452,1749234641681,-440.0,0.00020545,2]
[364767454,1749234641691,-440.0,0.00020545,2]
[364767456,1749234641700,-386.46763862,0.00020545,2]
[364767458,1749234641709,-440.0,0.00020545,2]
[364767460,1749234641719,-440.0,0.00020545,2]
[364767462,1749234641728,-440.0,0.00020545,2]
[364767464,1749234641737,-240.90046319,0.00020545,2]
[364767466,1749234641746,-440.0,0.00020545,2]
[364767468,1749234641756,-440.0,0.00020545,2]
[364767470,1749234641764,-307.08,0.00020545,2]
[364767471,1749234641774,-440.0,0.00020545,2]
[364767473,1749234641783,-434.82409152,0.00020545,2]
[364767475,1749234641792,-440.0,0.00020545,2]
[364767477,1749234641801,-440.0,0.00020545,2]
[364767479,1749234641811,-440.0,0.00020545,2]
[364767482,1749234641820,-519.90961659,0.00020545,2]
[364767484,1749234641830,-440.0,0.00020545,2]
[364767486,1749234641840,-440.0,0.00020545,2]
[364767488,1749234641849,-410.0,0.00020545,2]
[364767489,1749234641858,-440.0,0.00020545,2]
[364767491,1749234641868,-440.0,0.00020545,2]
[364767494,1749234641877,-440.0,0.00020545,2]
[364767496,1749234641887,-440.0,0.00020545,2]
[364767498,1749234641896,-440.0,0.00020545,2]
[364767500,1749234641905,-437.4470544,0.00020545,2]
[364767502,1749234641915,-440.0,0.00020545,2]
[364767504,1749234641924,-440.0,0.00020545,2]
[364767505,1749234641934,-440.0,0.00020545,2]
[364767507,1749234641943,-440.0,0.00020545,2]
[364767509,1749234641953,-440.0,0.00020545,2]
[364767511,1749234641962,-440.0,0.00020545,2]
[364767513,1749234641972,-440.0,0.00020545,2]
[364767515,1749234641981,-410.0,0.00020545,2]
[364767517,1749234641990,-440.0,0.00020545,2]
[364767519,1749234642000,-440.0,0.00020545,2]
[364767521,1749234642010,-416.682311,0.00020545,2]
[364767523,1749234642020,-416.682311,0.00020545,2]
[364767525,1749234642029,-1775.453673,0.00020545,2]
[364767527,1749234642038,-1775.453673,0.00020545,2]
[364767529,1749234642048,-440.0,0.00020545,2]
[364767531,1749234642059,-594.04,0.00020545,2]
[364767533,1749234642069,-440.0,0.00020545,2]
[364767535,1749234642079,-410.0,0.00020545,2]
[364767537,1749234642089,-400.0,0.00020546,2]
[364767539,1749234642099,-420.94828896,0.00020546,2]
[364767541,1749234642108,-440.0,0.00020546,2]
[364767543,1749234642117,-410.0,0.00020546,2]
[364767545,1749234642127,-440.0,0.00020546,2]
[364767547,1749234642136,-405.15,0.00020546,2]
[364767549,1749234642146,-410.0,0.00020546,2]
[364767551,1749234642156,-410.0,0.00020546,2]
[364767553,1749234642165,-478.61877372,0.00020546,2]
[364767555,1749234642174,-410.0,0.00020546,2]
[364767557,1749234642184,-484.06,0.00020546,2]
[364767559,1749234642193,-440.0,0.00020546,2]
[364767561,1749234642203,-440.0,0.00020546,2]
[364767563,1749234642212,-440.0,0.00020546,2]
[364767564,1749234642221,-401.50454324,0.00020546,2]
[364767565,1749234642232,-315.77611539,0.00020546,2]
[364767566,1749234642242,-440.0,0.00020546,2]
[364767567,1749234642252,-151.0,0.00020546,2]
[364767568,1749234642267,-440.0,0.00020546,2]
[364767569,1749234642279,-440.0,0.00020546,2]
[364767571,1749234642288,-440.0,0.00020546,2]
[364767572,1749234642298,-440.0,0.00020546,2]
[364767574,1749234642308,-383.39964934,0.00020546,2]
[364767576,1749234642318,-265.9579736,0.00020546,2]
[364767577,1749234642327,-440.0,0.00020546,2]
[364767578,1749234642337,-440.0,0.00020546,2]
[364767579,1749234642347,-440.0,0.00020546,2]
[364767580,1749234642358,-440.0,0.00020546,2]
[364767581,1749234642368,-225.10810695,0.00020546,2]
[364767582,1749234642378,-410.0,0.00020546,2]
[364767583,1749234642388,-440.0,0.00020546,2]
[364767584,1749234642398,-410.0,0.00020546,2]
[364767585,1749234642408,-440.0,0.00020546,2]
[364767586,1749234642418,-440.0,0.00020546,2]
[364767587,1749234642428,-151.0,0.00020546,2]
[364767588,1749234642438,-440.0,0.00020546,2]
[364767589,1749234642448,-440.0,0.00020546,2]
[364767590,1749234642457,-440.0,0.00020546,2]
[364767591,1749234642467,-440.0,0.00020546,2]
[364767592,1749234642476,-380.0,0.00020546,2]
[364767593,1749234642487,-151.0,0.00020546,2]
[364767594,1749234642497,-612.31881565,0.00020546,2]
[364767595,1749234642507,-670.23081885,0.0002059,3]
[364767596,1749234642518,-1200.0,0.00020762,2]
[364767598,1749234642528,-670.23081885,0.00020762,3]
[364767600,1749234642537,-440.0,0.00020817,2]
[364767601,1749234642547,-440.0,0.00020817,2]
[364767602,1749234642556,-440.0,0.00020817,2]
[364767603,1749234642566,-440.0,0.00020817,2]
[364767604,1749234642576,-440.0,0.00020817,2]
[364767605,1749234642586,-440.0,0.00020817,2]
[364767606,1749234642596,-440.0,0.00020817,2]
[364767607,1749234642605,-465.93,0.00020817,2]
[364767608,1749234642615,-440.0,0.00020817,2]
[364767609,1749234642625,-440.0,0.00020817,2]
[364767610,1749234642635,-440.0,0.00020817,2]
[364767611,1749234642646,-440.0,0.00020817,2]
[364767612,1749234642656,-440.0,0.00020818,2]
[364767613,1749234642666,-816.74,0.00020818,2]
[364767614,1749234642676,-247.06,0.00020818,2]
[364767615,1749234642686,-440.0,0.00020818,2]
[364767616,1749234642696,-440.0,0.00020818,2]
[364767618,1749234642706,-440.0,0.00020818,2]
[364767620,1749234642715,-440.0,0.00020818,2]
[364767622,1749234642725,-440.0,0.00020818,2]
[364767624,1749234642735,-440.0,0.00020818,2]
[364767626,1749234642745,-440.0,0.00020818,2]
[364767628,1749234642755,-440.0,0.00020818,2]
[364767630,1749234642765,-440.0,0.00020818,2]
[364767632,1749234642774,-440.0,0.00020818,2]
[364767633,1749234642783,-440.0,0.00020818,2]
[364767634,1749234642792,-440.0,0.00020818,2]
[364767635,1749234642802,-440.0,0.00020818,2]
[364767636,1749234642811,-440.0,0.00020818,2]
[364767637,1749234642820,-440.0,0.00020819,2]
[364767638,1749234642830,-440.0,0.00020819,2]
[364767639,1749234642839,-454.42560679,0.00020819,2]
[364767640,1749234642849,-410.0,0.00020819,2]
[364767641,1749234642858,-440.0,0.00020819,2]
[364767642,1749234642869,-440.0,0.00020819,2]
[364767643,1749234642879,-440.0,0.00020819,2]
[364767644,1749234642888,-440.0,0.00020819,2]
[364767645,1749234642898,-292.43,0.00020819,2]
[364767646,1749234642907,-440.0,0.00020819,2]
[364767647,1749234642917,-440.0,0.00020819,2]
[364767648,1749234642927,-440.0,0.00020819,2]
[364767649,1749234642937,-410.0,0.00020819,2]
[364767650,1749234642946,-440.0,0.00020819,2]
[364767651,1749234642956,-440.0,0.00020819,2]
[364767652,1749234642965,-440.0,0.00020819,2]
[364767653,1749234642975,-440.0,0.00020819,2]
[364767654,1749234642984,-440.0,0.00020819,2]
[364767655,1749234642994,-520.94,0.00020819,2]
[364767656,1749234643002,-440.0,0.00020819,2]
[364767657,1749234643012,-440.0,0.00020819,2]
[364767658,1749234643021,-440.0,0.00020819,2]
[364767659,1749234643031,-440.0,0.00020819,2]
[364767660,1749234643041,-282.09,0.00020819,2]
[364767661,1749234643050,-440.0,0.00020819,2]
[364767662,1749234643060,-440.0,0.00020819,2]
[364767663,1749234643069,-440.0,0.00020819,2]
[364767664,1749234643079,-440.0,0.00020819,2]
[364767665,1749234643088,-440.0,0.00020819,2]
[364767666,1749234643098,-440.0,0.00020819,2]
[364767667,1749234643108,-440.0,0.00020819,2]
[364767668,1749234643117,-400.0,0.00020819,2]
[364767669,1749234643127,-440.0,0.00020819,2]
[364767670,1749234643136,-440.0,0.00020819,2]
[364767671,1749234643145,-440.0,0.00020819,2]
[364767672,1749234643154,-400.0,0.00020819,2]
[364767673,1749234643163,-440.0,0.00020819,2]
[364767674,1749234643173,-440.0,0.00020819,2]
[364767675,1749234643182,-440.0,0.00020819,2]
[364767676,1749234643192,-440.0,0.00020819,2]
[364767677,1749234643201,-433.46,0.00020819,2]
[364767678,1749234643211,-440.0,0.00020819,2]
[364767679,1749234643220,-440.0,0.00020819,2]
[364767680,1749234643230,-416.682311,0.00020819,2]
[364767681,1749234643239,-416.682311,0.00020819,2]
[364767682,1749234643249,-1775.453673,0.00020819,2]
[364767683,1749234643258,-1775.453673,0.00020819,2]
[364767684,1749234643271,-440.0,0.00020819,2]
[364767685,1749234643280,-594.04,0.00020819,2]
[364767686,1749234643289,-400.0,0.0002082,2]
[364767687,1749234643298,-400.0,0.0002082,2]
[364767688,1749234643309,-400.0,0.0002082,2]
[364767689,1749234643318,-440.0,0.0002082,2]
[364767690,1749234643328,-440.0,0.0002082,2]
[364767691,1749234643338,-440.0,0.0002082,2]
[364767692,1749234643348,-527.81,0.0002082,2]
[364767693,1749234643357,-440.0,0.0002082,2]
[364767694,1749234643366,-440.0,0.0002082,2]
[364767695,1749234643376,-293.71584771,0.00020837,2]
[364767696,1749234643385,-906.28415229,0.00020838,2]
[364767697,1749234643395,-670.23081885,0.00020934,4]
[364767698,1749234643405,-250.60648377,0.00020949,2]
[364767699,1749234643414,-500.0,0.00020959,2]
[364767701,1749234643424,-800.0,0.00020977,2]
[364767703,1749234643434,-1000.0,0.00021048,2]
[364767705,1749234643443,-1000.0,0.00021048,2]
[364767707,1749234643453,-800.0,0.00021064,2]
[364767709,1749234643462,-440.0,0.00021091,2]
[364767711,1749234643471,-440.0,0.00021091,2]
[364767713,1749234643481,-440.0,0.00021091,2]
[364767715,1749234643491,-440.0,0.00021091,2]
[364767717,1749234643501,-440.0,0.00021091,2]
[364767718,1749234643511,-440.0,0.00021091,2]
[364767719,1749234643520,-440.0,0.00021091,2]
[364767720,1749234643530,-465.93,0.00021091,2]
[364767721,1749234643539,-440.0,0.00021091,2]
[364767722,1749234643548,-440.0,0.00021091,2]
[364767723,1749234643557,-440.0,0.00021091,2]
[364767724,1749234643566,-440.0,0.00021091,2]
[364767725,1749234643575,-440.0,0.00021092,2]
[364767726,1749234643584,-816.74,0.00021092,2]
[364767727,1749234643594,-440.0,0.00021092,2]
[364767728,1749234643603,-440.0,0.00021092,2]
[364767729,1749234643613,-440.0,0.00021092,2]
[364767730,1749234643622,-440.0,0.00021092,2]
[364767731,1749234643631,-440.0,0.00021092,2]
[364767732,1749234643641,-440.0,0.00021092,2]
[364767733,1749234643651,-440.0,0.00021092,2]
[364767734,1749234643660,-440.0,0.00021092,2]
[364767735,1749234643669,-440.0,0.00021092,2]
[364767736,1749234643678,-440.0,0.00021092,2]
[364767737,1749234643687,-189.00130533,0.00021092,2]
[364767738,1749234643696,-440.0,0.00021092,2]
[364767739,1749234643705,-440.0,0.00021092,2]
[364767740,1749234643714,-440.0,0.00021092,2]
[364767741,1749234643723,-440.0,0.00021093,2]
[364767742,1749234643732,-440.0,0.00021093,2]
[364767743,1749234643741,-440.0,0.00021093,2]
[364767744,1749234643750,-440.0,0.00021093,2]
[364767745,1749234643760,-440.0,0.00021093,2]
[364767746,1749234643769,-188.0545317,0.00021093,2]
[364767747,1749234643778,-440.0,0.00021093,2]
[364767748,1749234643787,-440.0,0.00021093,2]
[364767749,1749234643796,-440.0,0.00021093,2]
[364767750,1749234643805,-440.0,0.00021093,2]
[364767751,1749234643814,-440.0,0.00021093,2]
[364767752,1749234643823,-440.0,0.00021093,2]
[364767753,1749234643832,-440.0,0.00021093,2]
[364767754,1749234643841,-440.0,0.00021093,2]
[364767755,1749234643850,-440.0,0.00021093,2]
[364767756,1749234643860,-440.0,0.00021093,2]
[364767757,1749234643869,-440.0,0.00021093,2]
[364767758,1749234643879,-440.0,0.00021093,2]
[364767759,1749234643888,-440.0,0.00021093,2]
[364767760,1749234643898,-390.0,0.00021093,2]
[364767761,1749234643908,-440.0,0.00021093,2]
[364767762,1749234643917,-440.0,0.00021093,2]
[364767763,1749234643927,-440.0,0.00021093,2]
[364767764,1749234643936,-440.0,0.00021093,2]
[364767765,1749234643946,-440.0,0.00021093,2]
[364767766,1749234643955,-440.0,0.00021093,2]
[364767767,1749234643964,-440.0,0.00021093,2]
[364767768,1749234643973,-440.0,0.00021093,2]
[364767769,1749234643983,-440.0,0.00021093,2]
[364767770,1749234643992,-440.0,0.00021093,2]
[364767771,1749234644002,-1775.453673,0.00021093,2]
[364767772,1749234644011,-1775.453673,0.00021093,2]
[364767773,1749234644021,-440.0,0.00021093,2]
[364767774,1749234644031,-594.04,0.00021093,2]
[364767775,1749234644040,-151.0,0.00021093,2]
[364767776,1749234644050,-390.0,0.00021094,2]
[364767777,1749234644060,-440.0,0.00021094,2]
[364767778,1749234644069,-350.44968785,0.00021094,2]
[364767779,1749234644079,-440.0,0.00021094,2]
[364767780,1749234644088,-440.0,0.00021094,2]
[364767781,1749234644098,-670.23081885,0.00021107,4]
[364767782,1749234644108,-800.0,0.00021134,2]
[364767783,1749234644118,-800.0,0.00021189,2]
[364767784,1749234644128,-1034.119459,0.0002121,3]
[364767785,1749234644137,-670.23081885,0.00021279,5]
[364767786,1749234644146,-800.0,0.00021299,2]
[364767787,1749234644156,-150.0,0.000213,2]
[364767788,1749234644165,-151.0,0.00021314,2]
[364767789,1749234644174,-151.0,0.00021314,2]
[364767790,1749234644183,-215.0738,0.00021355,2]
[364767791,1749234644193,-440.0,0.00021365,2]
[364767792,1749234644203,-440.0,0.00021365,2]
[364767793,1749234644212,-440.0,0.00021365,2]
[364767794,1749234644221,-440.0,0.00021365,2]
[364767795,1749234644231,-440.0,0.00021365,2]
[364767796,1749234644240,-440.0,0.00021365,2]
[364767797,1749234644250,-440.0,0.00021365,2]
[364767798,1749234644261,-465.93,0.00021365,2]
[364767799,1749234644272,-440.0,0.00021365,2]
[364767800,1749234644282,-440.0,0.00021365,2]
[364767804,1749234644403,-419.67,0.00021365,2]
[364767805,1749234644415,-440.0,0.00021365,2]
[364767806,1749234644425,-440.0,0.00021366,2]
[364767807,1749234644435,-816.74,0.00021366,2]
[364767808,1749234644446,-440.0,0.00021366,2]
[364767809,1749234644456,-440.0,0.00021366,2]
[364767810,1749234644466,-440.0,0.00021366,2]
[364767811,1749234644476,-440.0,0.00021366,2]
[364767812,1749234644485,-440.0,0.00021366,2]
[364767813,1749234644495,-440.0,0.00021366,2]
[364767814,1749234644505,-440.0,0.00021366,2]
[364767815,1749234644514,-440.0,0.00021366,2]
[364767816,1749234644524,-440.0,0.00021366,2]
[364767817,1749234644534,-440.0,0.00021366,2]
[364767818,1749234644544,-440.0,0.00021366,2]
[364767819,1749234644553,-440.0,0.00021366,2]
[364767820,1749234644563,-440.0,0.00021366,2]
[364767821,1749234644573,-440.0,0.00021367,2]
[364767822,1749234644583,-440.0,0.00021367,2]
[364767823,1749234644592,-440.0,0.00021367,2]
[364767824,1749234644602,-440.0,0.00021367,2]
[364767825,1749234644611,-440.0,0.00021367,2]
[364767826,1749234644622,-440.0,0.00021367,2]
[364767827,1749234644632,-440.0,0.00021367,2]
[364767828,1749234644641,-285.78953446,0.00021367,2]
[364767829,1749234644651,-440.0,0.00021367,2]
[364767830,1749234644661,-440.0,0.00021367,2]
[364767831,1749234644671,-440.0,0.00021367,2]
[364767832,1749234644680,-440.0,0.00021367,2]
[364767833,1749234644690,-440.0,0.00021367,2]
[364767834,1749234644699,-440.0,0.00021367,2]
[364767835,1749234644709,-440.0,0.00021367,2]
[364767836,1749234644718,-440.0,0.00021367,2]
[364767837,1749234644729,-440.0,0.00021367,2]
[364767838,1749234644738,-440.0,0.00021367,2]
[364767839,1749234644748,-440.0,0.00021367,2]
[364767840,1749234644758,-440.0,0.00021367,2]
[364767841,1749234644767,-440.0,0.00021367,2]
[364767842,1749234644777,-440.0,0.00021367,2]
[364767843,1749234644786,-440.0,0.00021367,2]
[364767844,1749234644796,-440.0,0.00021367,2]
[364767845,1749234644807,-440.0,0.00021367,2]
[364767846,1749234644817,-440.0,0.00021367,2]
[364767847,1749234644827,-440.0,0.00021367,2]
[364767848,1749234644837,-416.682311,0.00021367,2]
[364767849,1749234644847,-416.682311,0.00021367,2]
[364767850,1749234644858,-1775.453673,0.00021367,2]
[364767851,1749234644867,-1775.453673,0.00021367,2]
[364767852,1749234644877,-440.0,0.00021367,2]
[364767853,1749234644886,-594.04,0.00021367,2]
[364767854,1749234644896,-440.0,0.00021368,2]
[364767855,1749234644905,-440.0,0.00021368,2]
[364767856,1749234644915,-440.0,0.00021368,2]
[364767857,1749234644924,-155.91437343,0.00021421,2]
[364767858,1749234644934,-670.23081885,0.00021452,5]
[364767859,1749234644943,-663.69337235,0.000215,2]
[364767860,1749234644953,-151.0,0.0002153,2]
[364767861,1749234644962,-151.0,0.0002159,2]
[364767862,1749234644972,-503.32066576,0.00021596,2]
[364767863,1749234644982,-500.0,0.00021596,2]
[364767864,1749234644991,-1000.0,0.000216,2]
[364767865,1749234645001,-670.23081885,0.00021624,5]
[364767866,1749234645011,-440.0,0.00021639,2]
[364767867,1749234645021,-440.0,0.00021639,2]
[364767868,1749234645030,-465.93,0.00021639,2]
[364767869,1749234645040,-440.0,0.00021639,2]
[364767870,1749234645049,-816.74,0.0002164,2]
[364767871,1749234645060,-213.42,0.0002164,2]
[364767872,1749234645070,-440.0,0.0002164,2]
[364767873,1749234645080,-440.0,0.0002164,2]
[364767874,1749234645091,-108816.8242032,0.0002164,2]
[364767875,1749234645186,-348166.5131568,0.0002164,2]
[364767876,1749234645197,-68025.51764587,0.00021641,2]
[364767877,1749234645207,-151.0,0.00021641,2]
[364767878,1749234645217,-151.0,0.00021641,2]
[364767879,1749234645228,-440.0,0.00021641,2]
[364767880,1749234645240,-440.0,0.00021641,2]
[364767881,1749234645250,-151.0,0.00021641,2]
[364767882,1749234645259,-302.0,0.00021641,2]
[364767883,1749234645272,-151.0,0.00021641,2]
[364767884,1749234645282,-416.682311,0.00021641,2]
[364767885,1749234645291,-416.682311,0.00021641,2]
[364767886,1749234645302,-1775.453673,0.00021641,2]
[364767887,1749234645311,-1775.453673,0.00021641,2]
[364767888,1749234645321,-440.0,0.00021641,2]
[364767889,1749234645331,-594.04,0.00021641,2]
[364767890,1749234645342,-151.0,0.00021641,2]
[364767891,1749234645352,-440.0,0.00021642,2]
[364767892,1749234645361,-440.0,0.00021642,2]
[364767893,1749234645371,-150.0,0.00021726,2]
[364767894,1749234645381,-420.0,0.00021761,2]
[364767895,1749234645390,-183.0,0.00021762,2]
[364767896,1749234645401,-420.0,0.00021771,2]
[364767897,1749234645410,-670.23081885,0.00021797,6]
[364767898,1749234645420,-1200.0,0.00021858,2]
[364767899,1749234645430,-1680.0,0.00021876,2]
[364767900,1749234645441,-440.0,0.00021913,2]
[364767901,1749234645451,-440.0,0.00021913,2]
[364767902,1749234645460,-465.93,0.00021913,2]
[364767903,1749234645470,-440.0,0.00021913,2]
[364767904,1749234645479,-816.74,0.00021914,2]
[364767905,1749234645489,-440.0,0.00021914,2]
[364767906,1749234645500,-310.3,0.00021914,2]
[364767907,1749234645509,-440.0,0.00021915,2]
[364767908,1749234645518,-440.0,0.00021915,2]
[364767909,1749234645528,-594.04,0.00021915,2]
[364767910,1749234645538,-440.0,0.00021916,2]
[364767911,1749234645548,-440.0,0.00021916,2]
[364767913,1749234645558,-670.23081885,0.00021969,6]
[364767915,1749234645568,-2500.0,0.00022,2]
[364767916,1749234645577,-628.52,0.00022,7]
[364767917,1749234645588,-79548.07,0.00022,7]
[364767918,1749234645597,-151.0,0.00022,7]
[364767919,1749234645608,-151.0,0.00022,7]
[364767920,1749234645618,-151.0,0.00022,7]
[364767921,1749234645628,-151.0,0.00022,7]
[364767922,1749234645638,-416.682311,0.00022,7]
[364767923,1749234645648,-416.682311,0.00022,7]
[364767924,1749234645658,-1775.453673,0.00022,2]
[364767925,1749234645668,-1775.45366776,0.00022,2]
[364767926,1749234645678,-151.0,0.00022,7]
[364767927,1749234645688,-2224.0,0.00022036,2]
[364767928,1749234645698,-709.0,0.00022036,2]
[364767929,1749234645708,-405.0,0.00022036,2]
[364767930,1749234645717,-663.69337232,0.00022075,2]
[364767931,1749234645727,-670.23081885,0.00022141,6]
[364767932,1749234645737,-440.0,0.00022187,2]
[364767933,1749234645746,-440.0,0.00022187,2]
[364767934,1749234645756,-465.93,0.00022187,2]
[364767935,1749234645765,-440.0,0.00022187,2]
[364767937,1749234645775,-816.74,0.00022188,2]
[364767939,1749234645784,-440.0,0.00022188,2]
[364767941,1749234645793,-440.0,0.00022189,2]
[364767943,1749234645803,-440.0,0.00022189,2]
[364767945,1749234645812,-594.04,0.00022189,2]
[364767947,1749234645822,-440.0,0.0002219,2]
[364767949,1749234645832,-440.0,0.0002219,2]
[364767951,1749234645841,-670.23081885,0.00022314,7]
[364767953,1749234645852,-11153.82803689,0.000224,5]
[364767955,1749234645861,-440.0,0.00022461,2]
[364767957,1749234645871,-286.49299319,0.00022461,2]
[364767959,1749234645881,-465.93,0.00022461,2]
[364767961,1749234645892,-440.0,0.00022461,2]
[364767963,1749234645901,-816.74,0.00022462,2]
[364767965,1749234645911,-440.0,0.00022462,2]
[364767967,1749234645921,-440.0,0.00022463,2]
[364767968,1749234645930,-440.0,0.00022463,2]
[364767970,1749234645939,-594.04,0.00022463,2]
[364767972,1749234645949,-440.0,0.00022464,2]
[364767973,1749234645959,-440.0,0.00022464,2]
[364767974,1749234645968,-238.354,0.00022468,2]
[364767975,1749234645979,-250.0,0.00022468,2]
[364767976,1749234645990,-258.056,0.00022468,2]
[364767977,1749234646001,-214.875,0.00022468,2]
[364767978,1749234646010,-670.23081885,0.00022486,7]
[364767979,1749234646020,-364.7156952,0.00022493,2]
[364767980,1749234646030,-364.7156952,0.00022493,2]
[364767981,1749234646039,-364.7156952,0.00022493,2]
[364767982,1749234646049,-500.0,0.00022511,2]
[364767983,1749234646059,-500.0,0.00022511,2]
[364767984,1749234646068,-500.0,0.00022511,2]
[364767985,1749234646078,-500.0,0.00022511,2]
[364767986,1749234646088,-500.0,0.00022511,2]
[364767987,1749234646097,-500.0,0.00022511,2]
[364767988,1749234646106,-600.0,0.00022511,2]
[364767989,1749234646118,-192.132413,0.00022586,7]
[364767990,1749234646129,-192.132413,0.00022586,7]
[364767991,1749234646138,-544.6348,0.000226,14]
[364767992,1749234646148,-1120.44,0.000226,7]
[364767993,1749234646160,-151.0,0.000226,7]
[364767994,1749234646169,-349.5057457,0.0002263,2]
[364767995,1749234646179,-416.682311,0.00022633,7]
[364767996,1749234646189,-416.682311,0.00022633,7]
[364767997,1749234646198,-663.69337232,0.0002265,2]
[364767998,1749234646208,-670.23081885,0.00022659,7]
[364768000,1749234646217,-151.0,0.00022687,7]
[364768001,1749234646227,-151.0,0.00022687,7]
[364768002,1749234646236,-521.44,0.000227,14]
[364768003,1749234646246,-223.0315306,0.00022724,2]
[364768004,1749234646256,-440.0,0.00022735,2]
[364768005,1749234646270,-465.93,0.00022735,2]
[364768006,1749234646279,-440.0,0.00022735,2]
[364768007,1749234646289,-816.74,0.00022736,2]
[364768008,1749234646298,-440.0,0.00022736,2]
[364768009,1749234646310,-151.0,0.00022737,7]
[364768010,1749234646320,-440.0,0.00022737,2]
[364768011,1749234646331,-440.0,0.00022737,2]